fUSD/lending_fUSD_20241104
["ID","MTS","AMOUNT","RATE_DAILY","PERIOD"]
[341268497,1730735508713,-575.97362363,0.0003863,2]
[341268498,1730735508723,-500.0,0.0003863,2]
[341268499,1730735508733,-1042.76,0.0003863,2]
[341268500,1730735508743,-1058.38,0.0003863,2]
[341268501,1730735508753,-505.09,0.0003863,2]
[341268502,1730735508764,-200.0,0.0003863,2]
[341268503,1730735508774,-913.46,0.0003863,2]
[341268504,1730735508785,-2146.82,0.0003863,2]
[341268505,1730735508796,-766.26,0.0003863,2]
[341268506,1730735508806,-1191.45,0.0003863,2]
[341268507,1730735508817,-500.0,0.0003863,2]
[341268508,1730735508828,-500.0,0.0003863,2]
[341268509,1730735508838,-482.12643935,0.0003863,2]
[341268510,1730735508847,-609.71,0.0003863,2]
[341268511,1730735508857,-938.94,0.0003863,2]
[341268512,1730735508866,-734.64,0.0003863,2]
[341268513,1730735508877,-236.84873452,0.0003863,2]
[341268514,1730735508885,-300.0,0.0003863,2]
[341268515,1730735508895,-530.41,0.0003863,2]
[341268516,1730735508905,-500.0,0.0003863,2]
[341268517,1730735508914,-1127.04,0.0003863,2]
[341268518,1730735508924,-654.01,0.0003863,2]
[341268519,1730735508933,-3340.62,0.0003863,2]
[341268520,1730735508947,-500.0,0.0003863,2]
[341268521,1730735508956,-10593.24,0.0003863,2]
[341268522,1730735508966,-551.53649797,0.0003863,2]
[341268523,1730735508976,-735.14,0.0003863,2]
[341268524,1730735508986,-500.0,0.0003863,2]
[341268525,1730735508996,-528.03,0.0003863,2]
[341268526,1730735509005,-3005.2,0.0003863,2]
[341268527,1730735509015,-1246.62,0.0003863,2]
[341268528,1730735509025,-500.0,0.0003863,2]
[341268529,1730735509034,-558.26,0.0003863,2]
[341268530,1730735509046,-656.86,0.0003863,2]
[341268531,1730735509056,-500.0,0.0003863,2]
[341268532,1730735509066,-625.73,0.0003863,2]
[341268533,1730735509077,-1000.0,0.0003863,2]
[341268534,1730735509087,-2616.04,0.0003863,2]
[341268535,1730735509097,-3461.86,0.0003863,2]
[341268536,1730735509108,-500.0,0.0003863,2]
[341268537,1730735509118,-1222.7,0.0003863,2]
[341268538,1730735509128,-514.78,0.0003863,2]
[341268539,1730735509138,-500.0,0.0003863,2]
[341268540,1730735509149,-500.0,0.0003863,2]
[341268541,1730735509159,-500.0,0.0003863,2]
[341268542,1730735509169,-954.74,0.0003863,2]
[341268543,1730735509179,-692.32,0.0003863,2]
[341268544,1730735509189,-596.33,0.0003863,2]
[341268545,1730735509199,-500.0,0.0003863,2]
[341268546,1730735509208,-1916.99,0.0003863,2]
[341268547,1730735509218,-211.29979714,0.00038766,30]
[341268548,1730735509228,-725.19,0.00038848,2]
[341268549,1730735509237,-500.0,0.00038903,2]
[341268550,1730735509248,-519.87,0.00038903,2]
[341268551,1730735509258,-500.0,0.00038903,2]
[341268552,1730735509267,-500.0,0.00038903,2]
[341268553,1730735509277,-500.0,0.00038903,2]
[341268554,1730735509287,-500.0,0.00038903,2]
[341268555,1730735509298,-500.0,0.00038903,2]
[341268556,1730735509307,-500.0,0.00038903,2]
[341268557,1730735509316,-278.82356049,0.00038903,2]
[341268558,1730735509326,-520.94,0.00038903,2]
[341268559,1730735509335,-614.06403838,0.00038903,2]
[341268560,1730735509344,-500.0,0.00038903,2]
[341268561,1730735509354,-575.99,0.00038903,2]
[341268562,1730735509364,-500.0,0.00038903,2]
[341268563,1730735509373,-431.76966428,0.00038903,2]
[341268564,1730735509383,-500.0,0.00038903,2]
[341268565,1730735509392,-549.42,0.00038903,2]
[341268566,1730735509406,-500.0,0.00038904,2]
[341268567,1730735509415,-500.0,0.00038904,2]
[341268568,1730735509425,-500.0,0.00038904,2]
[341268569,1730735509434,-215.32067296,0.00038904,2]
[341268570,1730735509445,-500.0,0.00038904,2]
[341268571,1730735509454,-595.97,0.00038904,2]
[341268572,1730735509464,-500.0,0.00038904,2]
[341268573,1730735509473,-562.46,0.00038904,2]
[341268574,1730735509485,-845.59,0.00038904,2]
[341268575,1730735509496,-639.78326374,0.00038904,2]
[341268576,1730735509506,-750.1,0.00038904,2]
[341268577,1730735509516,-226.95723942,0.00038904,2]
[341268578,1730735509526,-500.0,0.00038904,2]
[341268579,1730735509536,-567.62,0.00038904,2]
[341268580,1730735509547,-1971.19,0.00038904,2]
[341268581,1730735509557,-1610.78,0.00038904,2]
[341268582,1730735509732,-1096.83,0.00038904,2]
[341268583,1730735509744,-500.0,0.00038904,2]
[341268584,1730735509754,-516.0,0.00038904,2]
[341268585,1730735509763,-527.03,0.00038904,2]
[341268586,1730735509774,-680.27,0.00038904,2]
[341268587,1730735509784,-568.1,0.00038904,2]
[341268588,1730735509794,-630.31,0.00038904,2]
[341268589,1730735509805,-500.0,0.00038904,2]
[341268590,1730735509814,-511.55,0.00038904,2]
[341268591,1730735509824,-879.99,0.00038904,2]
[341268592,1730735509833,-1000.0,0.00038904,30]
[341268593,1730735509845,-860.12,0.00038904,2]
[341268594,1730735509854,-678.21,0.00038904,2]
[341268595,1730735509864,-777.65,0.00038904,2]
[341268596,1730735509873,-500.0,0.00038904,2]
[341268597,1730735509884,-512.81,0.00038904,2]
[341268598,1730735509894,-1976.03,0.00038904,2]
[341268599,1730735509904,-977.14,0.00038904,2]
[341268600,1730735509914,-500.0,0.00038904,2]
[341268601,1730735509924,-500.0,0.00038904,2]
[341268602,1730735509935,-622.99,0.00038904,2]
[341268603,1730735509945,-500.0,0.00038904,2]
[341268604,1730735509955,-712.32,0.00038904,2]
[341268605,1730735509966,-1115.68,0.00038904,2]
[341268606,1730735509976,-500.0,0.00038904,2]
[341268607,1730735509987,-500.0,0.00038904,2]
[341268608,1730735509997,-808.98,0.00038904,2]
[341268609,1730735510008,-500.0,0.00038904,2]
[341268610,1730735510019,-1426.9,0.00038904,2]
[341268611,1730735510029,-1323.81,0.00038904,2]
[341268612,1730735510039,-666.03,0.00038904,2]
[341268613,1730735510049,-839.44,0.00038904,2]
[341268614,1730735510060,-500.0,0.00038904,2]
[341268615,1730735510070,-500.0,0.00038904,2]
[341268616,1730735510081,-500.0,0.00038904,2]
[341268617,1730735510091,-500.0,0.00038904,2]
[341268618,1730735510101,-500.0,0.00038904,2]
[341268619,1730735510110,-737.61,0.00038904,2]
[341268620,1730735510120,-500.0,0.00038904,2]
[341268621,1730735510129,-500.0,0.00038904,2]
[341268622,1730735510140,-628.78,0.00038904,2]
[341268623,1730735510150,-753.23,0.00038904,2]
[341268624,1730735510159,-500.0,0.00038904,2]
[341268625,1730735510169,-512.34,0.00038904,2]
[341268626,1730735510180,-690.94,0.00038904,2]
[341268627,1730735510190,-1122.64,0.00038904,2]
[341268628,1730735510202,-956.46,0.00038904,2]
[341268629,1730735510214,-373.21682469,0.00038904,2]
[341268630,1730735510223,-1420.89,0.00038904,2]
[341268631,1730735510234,-705.19,0.00038904,2]
[341268632,1730735510244,-564.41052887,0.00038904,2]
[341268633,1730735510253,-767.22,0.00038904,2]
[341268634,1730735510263,-869.5,0.00038904,2]
[341268635,1730735510276,-712.63,0.00038904,2]
[341268636,1730735510288,-937.08,0.00038904,2]
[341268637,1730735510297,-764.15,0.00038904,2]
[341268638,1730735510307,-1294.05,0.00038904,2]
[341268639,1730735510316,-510.62,0.00038904,2]
[341268640,1730735510326,-524.31,0.00038904,2]
[341268641,1730735510336,-1118.2,0.00038904,2]
[341268642,1730735510346,-711.3,0.00038904,2]
[341268643,1730735510356,-500.0,0.00038904,2]
[341268644,1730735510366,-500.0,0.00038904,2]
[341268645,1730735510376,-1519.0,0.00038904,2]
[341268646,1730735510386,-500.0,0.00038904,2]
[341268647,1730735510396,-500.0,0.00038904,2]
[341268648,1730735510407,-500.0,0.00038904,2]
[341268649,1730735510416,-544.05,0.00038904,2]
[341268650,1730735510425,-1126.44,0.00038904,2]
[341268651,1730735510434,-500.0,0.00038904,2]
[341268652,1730735510445,-500.0,0.00038904,2]
[341268653,1730735510455,-1288.14,0.00038904,2]
[341268654,1730735510467,-543.83,0.00038904,2]
[341268655,1730735510478,-636.36,0.00038904,2]
[341268656,1730735510491,-1218.15,0.00038904,2]
[341268657,1730735510501,-430.324676,0.00038904,2]
[341268658,1730735510511,-1259.81,0.00038904,2]
[341268659,1730735510520,-1651.88,0.00038904,2]
[341268660,1730735510530,-319.99,0.00038904,2]
[341268661,1730735510540,-647.72147233,0.00038904,2]
[341268662,1730735510551,-500.0,0.00038904,2]
[341268663,1730735510562,-1360.92,0.00038904,2]
[341268664,1730735510572,-912.89,0.00038904,2]
[341268665,1730735510581,-500.0,0.00038904,2]
[341268666,1730735510592,-500.0,0.00038904,2]
[341268667,1730735510602,-719.39,0.00038904,2]
[341268668,1730735510612,-500.0,0.00038904,2]
[341268669,1730735510623,-704.43,0.00038904,2]
[341268670,1730735510634,-669.63,0.00038904,2]
[341268671,1730735510645,-500.0,0.00038904,2]
[341268672,1730735510654,-529.69,0.00038904,2]
[341268673,1730735510664,-500.0,0.00038904,2]
[341268674,1730735510674,-500.0,0.00038904,2]
[341268675,1730735510684,-500.0,0.00038904,2]
[341268676,1730735510694,-1802.68,0.00038904,2]
[341268677,1730735510704,-500.0,0.00038904,2]
[341268678,1730735510715,-500.0,0.00038904,2]
[341268679,1730735510726,-500.0,0.00038904,2]
[341268680,1730735510736,-500.0,0.00038904,2]
[341268681,1730735510747,-687.5,0.00038904,2]
[341268682,1730735510757,-1321.04,0.00038904,2]
[341268683,1730735510769,-909.72,0.00038904,2]
[341268684,1730735510779,-180.02,0.00038904,2]
[341268685,1730735510789,-500.0,0.00038904,2]
[341268686,1730735510800,-500.0,0.00038904,2]
[341268687,1730735510811,-879.57,0.00038904,2]
[341268688,1730735510821,-571.76,0.00038904,2]
[341268689,1730735510830,-500.0,0.00038904,2]
[341268690,1730735510841,-534.69,0.00038904,2]
[341268691,1730735510851,-500.0,0.00038904,2]
[341268692,1730735510861,-939.96,0.00038904,2]
[341268693,1730735510873,-500.0,0.00038904,2]
[341268694,1730735510884,-980.66,0.00038904,2]
[341268695,1730735510897,-500.0,0.00038904,2]
[341268696,1730735510907,-500.0,0.00038904,2]
[341268697,1730735510917,-546.11,0.00038904,2]
[341268698,1730735510927,-500.0,0.00038904,2]
[341268699,1730735510939,-511.22,0.00038904,2]
[341268700,1730735510949,-500.0,0.00038904,2]
[341268701,1730735510960,-505.5,0.00038904,2]
[341268702,1730735510970,-984.46,0.00038904,2]
[341268703,1730735510980,-614.73,0.00038904,2]
[341268704,1730735510993,-500.0,0.00038904,2]
[341268705,1730735511005,-602.48,0.00038904,2]
[341268706,1730735511015,-500.0,0.00038904,2]
[341268707,1730735511026,-988.32,0.00038904,2]
[341268708,1730735511036,-631.52,0.00038904,2]
[341268709,1730735511046,-553.74,0.00038904,2]
[341268710,1730735511056,-988.27,0.00038904,2]
[341268711,1730735511066,-769.98,0.00038904,2]
[341268712,1730735511076,-500.0,0.00038904,2]
[341268713,1730735511085,-325.63598687,0.00038904,2]
[341268714,1730735511095,-1956.97,0.00038904,2]
[341268715,1730735511105,-500.0,0.00038904,2]
[341268716,1730735511115,-250.0,0.00038904,2]
[341268717,1730735511124,-566.39,0.00038904,2]
[341268718,1730735511134,-1694.4,0.00038904,2]
[341268719,1730735511143,-500.0,0.00038904,2]
[341268720,1730735511153,-515.3,0.00038904,2]
[341268721,1730735511163,-879.85,0.00038904,2]
[341268722,1730735511174,-652.97,0.00038904,2]
[341268723,1730735511183,-689.03,0.00038904,2]
[341268724,1730735511192,-500.0,0.00038904,2]
[341268725,1730735511202,-500.0,0.00038904,2]
[341268726,1730735511212,-500.0,0.00038904,2]
[341268727,1730735511221,-777.65,0.00038904,2]
[341268728,1730735511231,-500.0,0.00038904,2]
[341268729,1730735511240,-500.0,0.00038904,2]
[341268730,1730735511253,-544.72460227,0.00038904,2]
[341268731,1730735511262,-609.2,0.00038904,2]
[341268732,1730735511271,-1141.77,0.00038904,2]
[341268733,1730735511282,-815.25,0.00038904,2]
[341268734,1730735511292,-1247.49,0.00038904,2]
[341268735,1730735511302,-214.6249459,0.00038904,2]
[341268736,1730735511311,-611.47,0.00038904,2]
[341268737,1730735511320,-500.0,0.00038904,2]
[341268738,1730735511330,-1538.63,0.00038904,2]
[341268739,1730735511340,-877.23,0.00038904,2]
[341268740,1730735511351,-1051.45,0.00038904,2]
[341268741,1730735511360,-4150.77,0.00038904,2]
[341268742,1730735511369,-745.46,0.00038904,2]
[341268743,1730735511378,-1876.8,0.00038904,2]
[341268744,1730735511388,-1151.0,0.00038904,2]
[341268745,1730735511397,-1770.42,0.00038904,2]
[341268746,1730735511411,-510.09,0.00038904,2]
[341268747,1730735511420,-522.29,0.00038904,2]
[341268748,1730735511430,-958.22,0.00038904,2]
[341268749,1730735511440,-1127.16,0.00038904,2]
[341268750,1730735511450,-213.26428513,0.00038904,2]
[341268751,1730735511460,-865.69,0.00038904,2]
[341268752,1730735511470,-500.0,0.00038904,2]
[341268753,1730735511479,-500.0,0.00038904,2]
[341268754,1730735511489,-1128.13,0.00038904,2]
[341268755,1730735511499,-1045.13,0.00038904,2]
[341268756,1730735511508,-531.53,0.00038904,2]
[341268757,1730735511518,-2026.72,0.00038904,2]
[341268758,1730735511527,-1098.81,0.00038904,2]
[341268759,1730735511536,-250.0,0.00038904,2]
[341268760,1730735511546,-520.4,0.00038904,2]
[341268761,1730735511556,-361.80469511,0.00038904,2]
[341268762,1730735511567,-500.0,0.00038904,2]
[341268763,1730735511576,-519.04,0.00038904,2]
[341268764,1730735511585,-500.0,0.00038904,2]
[341268765,1730735511595,-500.0,0.00038904,2]
[341268766,1730735511604,-627.52,0.00038904,2]
[341268767,1730735511613,-587.36,0.00038904,2]
[341268768,1730735511623,-500.0,0.00038904,2]
[341268769,1730735511632,-2121.93,0.00038904,2]
[341268770,1730735511643,-500.0,0.00038904,2]
[341268771,1730735511653,-582.71,0.00038904,2]
[341268772,1730735511662,-500.0,0.00038904,2]
[341268773,1730735511672,-1427.63,0.00038904,2]
[341268774,1730735511681,-791.14,0.00038904,2]
[341268775,1730735511693,-1116.56,0.00038904,2]
[341268776,1730735511702,-2018.13,0.00038904,2]
[341268777,1730735511712,-1093.28,0.00038904,2]
[341268778,1730735511723,-500.0,0.00038904,2]
[341268779,1730735511732,-500.0,0.00038904,2]
[341268780,1730735511742,-1687.58,0.00038904,2]
[341268781,1730735511753,-1104.45,0.00038904,2]
[341268782,1730735511762,-911.86,0.00038904,2]
[341268783,1730735511773,-835.19,0.00038904,2]
[341268784,1730735511782,-878.68,0.00038904,2]
[341268785,1730735511791,-1098.84,0.00038904,2]
[341268786,1730735511801,-500.0,0.00038904,2]
[341268787,1730735511810,-2183.79,0.00038904,2]
[341268788,1730735511820,-1310.74,0.00038904,2]
[341268789,1730735511830,-820.36,0.00038904,2]
[341268790,1730735511839,-500.0,0.00038904,2]
[341268791,1730735511849,-515.02,0.00038904,2]
[341268792,1730735511858,-500.0,0.00038904,2]
[341268793,1730735511867,-262.86152611,0.00038904,2]
[341268794,1730735511877,-500.0,0.00038904,2]
[341268795,1730735511886,-1708.91,0.00038904,2]
[341268796,1730735511896,-544.98,0.00038904,2]
[341268797,1730735511907,-660.53,0.00038904,2]
[341268798,1730735511917,-564.44,0.00038904,2]
[341268799,1730735511927,-850.52,0.00038904,2]
[341268800,1730735511937,-752.59,0.00038904,2]
[341268801,1730735511947,-500.0,0.00038904,2]
[341268802,1730735511958,-1296.67,0.00038904,2]
[341268803,1730735511967,-1584.46,0.00038904,2]
[341268804,1730735511976,-1066.3,0.00038904,2]
[341268805,1730735511986,-500.0,0.00038904,2]
[341268806,1730735511998,-1582.17,0.00038904,2]
[341268807,1730735512008,-500.0,0.00038904,2]
[341268808,1730735512018,-500.0,0.00038904,2]
[341268809,1730735512027,-1042.76,0.00038904,2]
[341268810,1730735512036,-1058.38,0.00038904,2]
[341268811,1730735512046,-505.09,0.00038904,2]
[341268812,1730735512056,-200.0,0.00038904,2]
[341268813,1730735512066,-913.46,0.00038904,2]
[341268814,1730735512077,-2146.82,0.00038904,2]
[341268815,1730735512086,-766.26,0.00038904,2]
[341268816,1730735512096,-1191.45,0.00038904,2]
[341268817,1730735512106,-500.0,0.00038904,2]
[341268818,1730735512117,-500.0,0.00038904,2]
[341268819,1730735512127,-609.71,0.00038904,2]
[341268820,1730735512137,-938.94,0.00038904,2]
[341268821,1730735512146,-734.64,0.00038904,2]
[341268822,1730735512156,-300.0,0.00038904,2]
[341268823,1730735512166,-530.41,0.00038904,2]
[341268824,1730735512179,-500.0,0.00038904,2]
[341268825,1730735512188,-1127.04,0.00038904,2]
[341268826,1730735512253,-654.01,0.00038904,2]
[341268827,1730735512263,-3340.62,0.00038904,2]
[341268828,1730735512272,-500.0,0.00038904,2]
[341268829,1730735512282,-10593.24,0.00038904,2]
[341268830,1730735512291,-735.14,0.00038904,2]
[341268831,1730735512300,-292.65737772,0.00038904,2]
[341268832,1730735512310,-528.03,0.00038904,2]
[341268833,1730735512320,-3005.2,0.00038904,2]
[341268834,1730735512331,-1246.62,0.00038904,2]
[341268835,1730735512342,-500.0,0.00038904,2]
[341268836,1730735512352,-558.26,0.00038904,2]
[341268837,1730735512363,-656.86,0.00038904,2]
[341268838,1730735512372,-500.0,0.00038904,2]
[341268839,1730735512384,-625.73,0.00038904,2]
[341268840,1730735512394,-1000.0,0.00038904,2]
[341268841,1730735512407,-2616.04,0.00038904,2]
[341268842,1730735512420,-500.0,0.00038904,2]
[341268843,1730735512431,-1222.7,0.00038904,2]
[341268844,1730735512443,-514.78,0.00038904,2]
[341268845,1730735512455,-3461.86,0.00038904,2]
[341268846,1730735512468,-500.0,0.00038904,2]
[341268847,1730735512479,-500.0,0.00038904,2]
[341268848,1730735512490,-500.0,0.00038904,2]
[341268849,1730735512501,-954.74,0.00038904,2]
[341268850,1730735512511,-692.32,0.00038904,2]
[341268851,1730735512522,-596.33,0.00038904,2]
[341268852,1730735512533,-500.0,0.00038904,2]
[341268853,1730735512543,-1916.99,0.00038904,2]
[341268854,1730735512553,-700.0,0.00039,2]
[341268855,1730735512562,-1006.0,0.00039,6]
[341268856,1730735512572,-1255.75,0.00039041,120]
[341268857,1730735512581,-174.17818,0.00039088,7]
[341268858,1730735512591,-265.36413241,0.00039177,2]
[341268859,1730735512600,-519.87,0.00039177,2]
[341268860,1730735512611,-500.0,0.00039177,2]
[341268861,1730735512622,-500.0,0.00039177,2]
[341268862,1730735512631,-500.0,0.00039177,2]
[341268863,1730735512641,-500.0,0.00039177,2]
[341268864,1730735512652,-500.0,0.00039177,2]
[341268865,1730735512661,-542.8837869,0.00039177,2]
[341268866,1730735512672,-520.94,0.00039177,2]
[341268867,1730735512682,-500.0,0.00039177,2]
[341268868,1730735512692,-575.99,0.00039177,2]
[341268869,1730735512704,-500.0,0.00039177,2]
[341268870,1730735512714,-500.0,0.00039177,2]
[341268871,1730735512725,-549.42,0.00039177,2]
[341268872,1730735512735,-500.0,0.00039178,2]
[341268873,1730735512745,-500.0,0.00039178,2]
[341268874,1730735512754,-500.0,0.00039178,2]
[341268875,1730735512764,-500.0,0.00039178,2]
[341268876,1730735512774,-595.97,0.00039178,2]
[341268877,1730735512784,-500.0,0.00039178,2]
[341268878,1730735512794,-562.46,0.00039178,2]
[341268879,1730735512804,-845.59,0.00039178,2]
[341268880,1730735512814,-750.1,0.00039178,2]
[341268881,1730735512824,-500.0,0.00039178,2]
[341268882,1730735512834,-567.62,0.00039178,2]
[341268883,1730735512843,-1971.19,0.00039178,2]
[341268884,1730735512854,-1610.78,0.00039178,2]
[341268885,1730735512863,-1096.83,0.00039178,2]
[341268886,1730735512874,-500.0,0.00039178,2]
[341268887,1730735512885,-516.0,0.00039178,2]
[341268888,1730735512896,-527.03,0.00039178,2]
[341268889,1730735512907,-680.27,0.00039178,2]
[341268890,1730735512917,-568.1,0.00039178,2]
[341268891,1730735512926,-630.31,0.00039178,2]
[341268892,1730735512937,-500.0,0.00039178,2]
[341268893,1730735512947,-511.55,0.00039178,2]
[341268894,1730735512958,-879.99,0.00039178,2]
[341268895,1730735512968,-1000.0,0.00039178,30]
[341268896,1730735512978,-860.12,0.00039178,2]
[341268897,1730735512987,-678.21,0.00039178,2]
[341268898,1730735512999,-777.65,0.00039178,2]
[341268899,1730735513008,-500.0,0.00039178,2]
[341268900,1730735513019,-512.81,0.00039178,2]
[341268901,1730735513029,-1976.03,0.00039178,2]
[341268902,1730735513040,-977.14,0.00039178,2]
[341268903,1730735513051,-500.0,0.00039178,2]
[341268904,1730735513061,-500.0,0.00039178,2]
[341268905,1730735513071,-622.99,0.00039178,2]
[341268906,1730735513081,-500.0,0.00039178,2]
[341268907,1730735513091,-712.32,0.00039178,2]
[341268908,1730735513101,-1115.68,0.00039178,2]
[341268909,1730735513111,-500.0,0.00039178,2]
[341268910,1730735513121,-500.0,0.00039178,2]
[341268911,1730735513130,-808.98,0.00039178,2]
[341268912,1730735513140,-500.0,0.00039178,2]
[341268913,1730735513151,-1426.9,0.00039178,2]
[341268914,1730735513163,-1323.81,0.00039178,2]
[341268915,1730735513173,-666.03,0.00039178,2]
[341268916,1730735513183,-839.44,0.00039178,2]
[341268917,1730735513194,-500.0,0.00039178,2]
[341268918,1730735513205,-500.0,0.00039178,2]
[341268919,1730735513216,-500.0,0.00039178,2]
[341268920,1730735513227,-500.0,0.00039178,2]
[341268921,1730735513237,-500.0,0.00039178,2]
[341268922,1730735513248,-737.61,0.00039178,2]
[341268923,1730735513258,-500.0,0.00039178,2]
[341268924,1730735513267,-500.0,0.00039178,2]
[341268925,1730735513277,-628.78,0.00039178,2]
[341268926,1730735513288,-753.23,0.00039178,2]
[341268927,1730735513298,-500.0,0.00039178,2]
[341268928,1730735513309,-512.34,0.00039178,2]
[341268929,1730735513321,-690.94,0.00039178,2]
[341268930,1730735513331,-1122.64,0.00039178,2]
[341268931,1730735513341,-956.46,0.00039178,2]
[341268932,1730735513351,-1420.89,0.00039178,2]
[341268933,1730735513361,-705.19,0.00039178,2]
[341268934,1730735513370,-767.22,0.00039178,2]
[341268935,1730735513380,-869.5,0.00039178,2]
[341268936,1730735513390,-712.63,0.00039178,2]
[341268937,1730735513400,-937.08,0.00039178,2]
[341268938,1730735513414,-764.15,0.00039178,2]
[341268939,1730735513423,-1294.05,0.00039178,2]
[341268940,1730735513435,-510.62,0.00039178,2]
[341268941,1730735513444,-524.31,0.00039178,2]
[341268942,1730735513455,-1118.2,0.00039178,2]
[341268943,1730735513465,-711.3,0.00039178,2]
[341268944,1730735513475,-500.0,0.00039178,2]
[341268945,1730735513485,-500.0,0.00039178,2]
[341268946,1730735513497,-1519.0,0.00039178,2]
[341268947,1730735513507,-500.0,0.00039178,2]
[341268948,1730735513517,-500.0,0.00039178,2]
[341268949,1730735513527,-500.0,0.00039178,2]
[341268950,1730735513537,-544.05,0.00039178,2]
[341268951,1730735513546,-1126.44,0.00039178,2]
[341268952,1730735513555,-179.04037425,0.00039178,2]
[341268953,1730735513565,-500.0,0.00039178,2]
[341268954,1730735513575,-1288.14,0.00039178,2]
[341268955,1730735513584,-543.83,0.00039178,2]
[341268956,1730735513594,-636.36,0.00039178,2]
[341268957,1730735513604,-1218.15,0.00039178,2]
[341268958,1730735513613,-1259.81,0.00039178,2]
[341268959,1730735513623,-1651.88,0.00039178,2]
[341268960,1730735513633,-319.99,0.00039178,2]
[341268961,1730735513642,-500.0,0.00039178,2]
[341268962,1730735513652,-1360.92,0.00039178,2]
[341268963,1730735513662,-912.89,0.00039178,2]
[341268964,1730735513672,-500.0,0.00039178,2]
[341268965,1730735513683,-302.09864319,0.00039178,2]
[341268966,1730735513692,-719.39,0.00039178,2]
[341268967,1730735513701,-500.0,0.00039178,2]
[341268968,1730735513711,-704.43,0.00039178,2]
[341268969,1730735513721,-669.63,0.00039178,2]
[341268970,1730735513730,-500.0,0.00039178,2]
[341268971,1730735513740,-529.69,0.00039178,2]
[341268972,1730735513751,-500.0,0.00039178,2]
[341268973,1730735513760,-500.0,0.00039178,2]
[341268974,1730735513770,-500.0,0.00039178,2]
[341268975,1730735513780,-1802.68,0.00039178,2]
[341268976,1730735513791,-500.0,0.00039178,2]
[341268977,1730735513801,-500.0,0.00039178,2]
[341268978,1730735513811,-500.0,0.00039178,2]
[341268979,1730735513821,-500.0,0.00039178,2]
[341268980,1730735513831,-687.5,0.00039178,2]
[341268981,1730735513841,-1321.04,0.00039178,2]
[341268982,1730735513851,-909.72,0.00039178,2]
[341268983,1730735513860,-500.0,0.00039178,2]
[341268984,1730735513870,-500.0,0.00039178,2]
[341268985,1730735513881,-879.57,0.00039178,2]
[341268986,1730735513890,-571.76,0.00039178,2]
[341268987,1730735513905,-500.0,0.00039178,2]
[341268988,1730735513915,-534.69,0.00039178,2]
[341268989,1730735513925,-500.0,0.00039178,2]
[341268990,1730735513936,-939.96,0.00039178,2]
[341268991,1730735513946,-500.0,0.00039178,2]
[341268992,1730735513955,-980.66,0.00039178,2]
[341268993,1730735513965,-500.0,0.00039178,2]
[341268994,1730735513976,-500.0,0.00039178,2]
[341268995,1730735513986,-546.11,0.00039178,2]
[341268996,1730735513997,-500.0,0.00039178,2]